[Event "Live Chess"]
[Site "Chess.com"]
[Date "2020.09.22"]
[Round "6"]
[White "AlexanderL"]
[Black "FlightsOfFancy"]
[Result "1-0"]
[ECO "A30"]
[WhiteElo "2717"]
[BlackElo "2075"]
[TimeControl "2100+2"]
[EndTime "21:08:55 PDT"]
[Termination "AlexanderL won on time"]

1. Nf3 {[%clk 0:34:44.3]} 1... c5 {[%clk 0:34:54.8]} 2. c4 {[%clk 0:34:35.2]}
2... g6 {[%clk 0:34:43.9]} 3. d4 {[%clk 0:34:20.2]} 3... cxd4 {[%clk 0:34:37.9]}
4. Nxd4 {[%clk 0:34:22.1]} 4... Bg7 {[%clk 0:34:25.6]} 5. e4 {[%clk 0:34:16.8]}
5... Nc6 {[%clk 0:34:25.7]} 6. Be3 {[%clk 0:34:15.8]} 6... Nf6 {[%clk
0:34:26.1]} 7. Nc3 {[%clk 0:34:15.9]} 7... Ng4 {[%clk 0:34:19.1]} 8. Qxg4 {[%clk
0:34:15.9]} 8... Nxd4 {[%clk 0:34:19.1]} 9. Qd1 {[%clk 0:34:16.4]} 9... e5
{[%clk 0:34:12.5]} 10. Bd3 {[%clk 0:33:52.8]} 10... O-O {[%clk 0:33:34.6]} 11.
O-O {[%clk 0:33:46.7]} 11... b6 {[%clk 0:32:24.3]} 12. Qd2 {[%clk 0:33:16.8]}
12... Bb7 {[%clk 0:31:01]} 13. Rad1 {[%clk 0:33:12.3]} 13... f5 {[%clk
0:28:15.3]} 14. exf5 {[%clk 0:32:39.5]} 14... gxf5 {[%clk 0:28:01.6]} 15. Bxd4
{[%clk 0:31:54.2]} 15... exd4 {[%clk 0:27:42.8]} 16. Nb5 {[%clk 0:30:10.6]}
16... Qh4 {[%clk 0:24:26.7]} 17. f3 {[%clk 0:20:42.8]} 17... Rf6 {[%clk
0:17:38.4]} 18. Qf2 {[%clk 0:20:31.9]} 18... Qh5 {[%clk 0:16:46.5]} 19. Rde1
{[%clk 0:17:46.8]} 19... Raf8 {[%clk 0:11:23.1]} 20. Re7 {[%clk 0:15:02.3]}
20... Rh6 {[%clk 0:09:49.2]} 21. Rxg7+ {[%clk 0:11:06]} 21... Kxg7 {[%clk
0:09:43.4]} 22. Qxd4+ {[%clk 0:11:07.9]} 22... Kg8 {[%clk 0:09:37.9]} 23. Qf4
{[%clk 0:10:59.9]} 23... Qh4 {[%clk 0:06:38.1]} 24. Qxh4 {[%clk 0:10:59]} 24...
Rxh4 {[%clk 0:06:38]} 25. Rd1 {[%clk 0:10:16.6]} 25... d5 {[%clk 0:03:42.9]} 26.
Nd6 {[%clk 0:08:41.9]} 26... dxc4 {[%clk 0:03:00.9]} 27. Bxc4+ {[%clk
0:08:38.3]} 27... Kh8 {[%clk 0:02:52]} 28. Be6 {[%clk 0:08:11.1]} 28... Bc6
{[%clk 0:02:14.4]} 29. Rc1 {[%clk 0:07:40.2]} 29... Ba8 {[%clk 0:00:24.9]} 30.
Nxf5 {[%clk 0:07:27.8]} 30... Rf4 {[%clk 0:00:16.7]} 31. Rc7 {[%clk 0:05:57.8]}
31... a5 {[%clk 0:00:02.2]} 32. Kf2 {[%clk 0:05:18.3]} 1-0

[Event "Live Chess"]
[Site "Chess.com"]
[Date "2020.09.22"]
[Round "6"]
[White "andrewaballantyne"]
[Black "SunnyCountry"]
[Result "0-1"]
[ECO "B21"]
[WhiteElo "948"]
[BlackElo "1193"]
[TimeControl "2100+2"]
[EndTime "20:46:31 PDT"]
[Termination "SunnyCountry won by resignation"]

1. e4 {[%clk 0:34:58.7]} 1... c5 {[%clk 0:32:48.8]} 2. d4 {[%clk 0:34:57.3]}
2... cxd4 {[%clk 0:32:44.5]} 3. c3 {[%clk 0:34:55.5]} 3... dxc3 {[%clk
0:32:43.7]} 4. Nxc3 {[%clk 0:34:56.6]} 4... Nc6 {[%clk 0:32:36.2]} 5. Nf3 {[%clk
0:34:53.2]} 5... d6 {[%clk 0:31:57.2]} 6. Bc4 {[%clk 0:34:50.4]} 6... e6 {[%clk
0:31:54.9]} 7. O-O {[%clk 0:34:48.5]} 7... Nf6 {[%clk 0:31:53.4]} 8. Qe2 {[%clk
0:34:27.3]} 8... Be7 {[%clk 0:31:48.5]} 9. Rd1 {[%clk 0:34:23.4]} 9... O-O
{[%clk 0:31:26.4]} 10. e5 {[%clk 0:34:10.7]} 10... Ne8 {[%clk 0:31:00]} 11. Bf4
{[%clk 0:33:52.2]} 11... d5 {[%clk 0:29:59.3]} 12. Bb3 {[%clk 0:30:45.8]} 12...
Qc7 {[%clk 0:27:31.6]} 13. a3 {[%clk 0:30:06.5]} 13... a6 {[%clk 0:26:30.6]} 14.
Qd3 {[%clk 0:29:33.8]} 14... g6 {[%clk 0:24:51.1]} 15. Bh6 {[%clk 0:29:27.5]}
15... Ng7 {[%clk 0:24:30.7]} 16. Ng5 {[%clk 0:27:19.3]} 16... Bxg5 {[%clk
0:23:50.8]} 17. Bxg5 {[%clk 0:27:16.7]} 17... Nxe5 {[%clk 0:23:21.2]} 18. Qd4
{[%clk 0:27:08.9]} 18... Nf5 {[%clk 0:21:38.2]} 19. Qf4 {[%clk 0:26:23.7]} 19...
f6 {[%clk 0:21:01]} 20. Bh6 {[%clk 0:24:51.4]} 20... Nxh6 {[%clk 0:20:40.2]} 21.
Qxh6 {[%clk 0:24:47.5]} 21... Ng4 {[%clk 0:20:30.5]} 22. Qh4 {[%clk 0:24:27.3]}
22... f5 {[%clk 0:19:33.1]} 23. Rac1 {[%clk 0:23:56.9]} 23... Qd8 {[%clk
0:19:18.9]} 24. Qg3 {[%clk 0:23:16.2]} 24... Kh8 {[%clk 0:17:58.9]} 25. h3
{[%clk 0:22:53.9]} 25... Nf6 {[%clk 0:17:51.1]} 26. Qe5 {[%clk 0:22:10.6]} 26...
b5 {[%clk 0:17:08.8]} 27. g4 {[%clk 0:21:18.7]} 27... Qe8 {[%clk 0:16:26.9]} 28.
g5 {[%clk 0:20:00.4]} 28... Qe7 {[%clk 0:15:56.7]} 29. Nxd5 {[%clk 0:19:22.6]}
29... Qf7 {[%clk 0:15:25.8]} 30. Rc7 {[%clk 0:19:02.5]} 30... Qe8 {[%clk
0:14:44.3]} 31. gxf6 {[%clk 0:18:51.7]} 31... exd5 {[%clk 0:14:29.1]} 32. f7+
{[%clk 0:18:44]} 32... Qxe5 {[%clk 0:14:22.1]} 33. Bxd5 {[%clk 0:18:33.3]} 33...
Qxc7 {[%clk 0:14:17.8]} 34. Bxa8 {[%clk 0:18:33.2]} 34... Rxf7 {[%clk
0:14:11.4]} 35. Bf3 {[%clk 0:18:25.4]} 35... Bb7 {[%clk 0:13:54]} 36. Be2 {[%clk
0:17:51.9]} 36... Qc6 {[%clk 0:13:38]} 37. f3 {[%clk 0:17:35.6]} 37... Re7
{[%clk 0:13:25.1]} 38. Rd8+ {[%clk 0:17:24.3]} 38... Kg7 {[%clk 0:13:20.5]} 39.
Bd3 {[%clk 0:17:19]} 0-1

[Event "Live Chess"]
[Site "Chess.com"]
[Date "2020.09.22"]
[Round "6"]
[White "ashikuzzaman"]
[Black "TABiyiasas"]
[Result "0-1"]
[ECO "C36"]
[WhiteElo "1940"]
[BlackElo "2175"]
[TimeControl "2100+2"]
[EndTime "20:29:35 PDT"]
[Termination "TABiyiasas won by resignation"]

1. e4 {[%clk 0:35:01.7]} 1... e5 {[%clk 0:34:45.6]} 2. f4 {[%clk 0:34:58.3]}
2... d5 {[%clk 0:34:33.5]} 3. exd5 {[%clk 0:34:58.3]} 3... exf4 {[%clk
0:34:32.5]} 4. Nf3 {[%clk 0:34:54.4]} 4... Nf6 {[%clk 0:34:31.7]} 5. d4 {[%clk
0:34:53.8]} 5... Nxd5 {[%clk 0:34:04]} 6. c4 {[%clk 0:34:53]} 6... Bb4+ {[%clk
0:33:00.2]} 7. Kf2 {[%clk 0:34:51.9]} 7... Ne3 {[%clk 0:32:43]} 8. Bxe3 {[%clk
0:32:37.5]} 8... fxe3+ {[%clk 0:32:41.2]} 9. Kxe3 {[%clk 0:32:38]} 9... O-O
{[%clk 0:32:41.1]} 10. Nc3 {[%clk 0:32:11.6]} 10... Nc6 {[%clk 0:30:37.2]} 11.
a3 {[%clk 0:31:47.7]} 11... Re8+ {[%clk 0:29:37.8]} 12. Kf2 {[%clk 0:31:47.1]}
12... Be7 {[%clk 0:29:36.6]} 13. Nd5 {[%clk 0:30:04.7]} 13... Bg4 {[%clk
0:29:13]} 14. Nxe7+ {[%clk 0:29:50.3]} 14... Qxe7 {[%clk 0:29:12.1]} 15. Qd2
{[%clk 0:29:09.1]} 15... Bxf3 {[%clk 0:28:54.1]} 16. gxf3 {[%clk 0:28:09.3]}
16... Qh4+ {[%clk 0:28:39.5]} 17. Kg2 {[%clk 0:28:02.1]} 17... Nxd4 {[%clk
0:28:12]} 18. Rd1 {[%clk 0:27:48.7]} 18... c5 {[%clk 0:28:10.2]} 19. Bd3 {[%clk
0:27:44.1]} 19... Re5 {[%clk 0:28:00.9]} 20. Rhf1 {[%clk 0:26:34.2]} 20... Rae8
{[%clk 0:27:42.6]} 21. Rf2 {[%clk 0:25:37.4]} 21... g6 {[%clk 0:26:59.9]} 22.
Be4 {[%clk 0:25:27.3]} 22... b6 {[%clk 0:26:29.8]} 23. Rdf1 {[%clk 0:25:07]}
23... Kg7 {[%clk 0:24:21.5]} 24. Bd5 {[%clk 0:24:45.1]} 24... Re2 {[%clk
0:22:46.3]} 25. Qd1 {[%clk 0:24:03.8]} 25... R8e5 {[%clk 0:22:05.7]} 26. b4
{[%clk 0:23:52.5]} 26... Rg5+ {[%clk 0:21:58.7]} 27. Kh1 {[%clk 0:23:51.3]}
27... Rxf2 {[%clk 0:21:57.9]} 28. Rxf2 {[%clk 0:23:48.1]} 28... Qxf2 {[%clk
0:21:57.3]} 29. f4 {[%clk 0:23:47.5]} 29... Rh5 {[%clk 0:21:39.7]} 30. Qg1
{[%clk 0:23:43.9]} 30... Qxg1+ {[%clk 0:21:35.6]} 31. Kxg1 {[%clk 0:23:44.8]}
31... Ne2+ {[%clk 0:21:34.7]} 32. Kf2 {[%clk 0:23:45.2]} 32... Nxf4 {[%clk
0:21:36.6]} 0-1

[Event "Live Chess"]
[Site "Chess.com"]
[Date "2020.09.22"]
[Round "6"]
[White "bobbejaan"]
[Black "katechen77"]
[Result "1/2-1/2"]
[ECO "B34"]
[WhiteElo "1884"]
[BlackElo "1719"]
[TimeControl "2100+2"]
[EndTime "21:00:49 PDT"]
[Termination "Game drawn by agreement"]

1. e4 {[%clk 0:34:55.4]} 1... c5 {[%clk 0:34:54.3]} 2. Nf3 {[%clk 0:34:54.5]}
2... Nc6 {[%clk 0:34:55.1]} 3. d4 {[%clk 0:34:53]} 3... cxd4 {[%clk 0:34:52.8]}
4. Nxd4 {[%clk 0:34:53.1]} 4... g6 {[%clk 0:34:50]} 5. Nc3 {[%clk 0:34:31.9]}
5... Bg7 {[%clk 0:34:50]} 6. Be3 {[%clk 0:34:18.8]} 6... Nf6 {[%clk 0:34:48.5]}
7. Bb5 {[%clk 0:33:56.5]} 7... O-O {[%clk 0:34:18.9]} 8. O-O {[%clk 0:33:52.2]}
8... a6 {[%clk 0:34:06.5]} 9. Bxc6 {[%clk 0:33:44.2]} 9... dxc6 {[%clk
0:33:32.1]} 10. Qd2 {[%clk 0:33:26.6]} 10... Ng4 {[%clk 0:32:56.2]} 11. Rad1
{[%clk 0:33:15.4]} 11... Nxe3 {[%clk 0:30:50.1]} 12. Qxe3 {[%clk 0:33:13.9]}
12... Qc7 {[%clk 0:30:09]} 13. Nb3 {[%clk 0:33:01.9]} 13... a5 {[%clk
0:27:23.2]} 14. a4 {[%clk 0:32:51.8]} 14... b6 {[%clk 0:26:36.8]} 15. Rd2 {[%clk
0:31:34.6]} 15... Ba6 {[%clk 0:25:47.8]} 16. Rfd1 {[%clk 0:31:27.8]} 16... Rad8
{[%clk 0:25:10.6]} 17. Rxd8 {[%clk 0:31:23.4]} 17... Rxd8 {[%clk 0:25:10]} 18.
Rxd8+ {[%clk 0:30:57.4]} 18... Qxd8 {[%clk 0:25:07.8]} 19. h3 {[%clk 0:30:54.8]}
19... e6 {[%clk 0:22:45.7]} 20. e5 {[%clk 0:30:42.5]} 20... c5 {[%clk
0:20:42.4]} 21. f4 {[%clk 0:28:55.3]} 21... Bb7 {[%clk 0:19:01]} 22. Qd2 {[%clk
0:28:17.6]} 22... Qxd2 {[%clk 0:16:01.3]} 23. Nxd2 {[%clk 0:28:15.7]} 23... Bd5
{[%clk 0:15:51.5]} 24. Kf2 {[%clk 0:27:41.2]} 24... f6 {[%clk 0:15:13.1]} 25.
Nxd5 {[%clk 0:27:21]} 25... exd5 {[%clk 0:15:13.2]} 26. exf6 {[%clk 0:27:21]}
26... Bxf6 {[%clk 0:15:12]} 27. b3 {[%clk 0:27:19.7]} 27... Kf7 {[%clk
0:14:37.6]} 28. c4 {[%clk 0:26:43.1]} 28... Ke6 {[%clk 0:13:29.3]} 29. Ke3
{[%clk 0:26:03]} 29... d4+ {[%clk 0:13:03.1]} 30. Ke4 {[%clk 0:25:55.1]} 30...
h5 {[%clk 0:12:59]} 31. g4 {[%clk 0:25:50.7]} 31... hxg4 {[%clk 0:12:30.8]} 32.
hxg4 {[%clk 0:25:49.7]} 32... Bd8 {[%clk 0:12:13.4]} 33. Nf3 {[%clk 0:25:43.3]}
33... Bf6 {[%clk 0:11:56]} 34. f5+ {[%clk 0:25:20.6]} 34... gxf5+ {[%clk
0:11:14.9]} 35. gxf5+ {[%clk 0:25:19.3]} 35... Kd6 {[%clk 0:11:14.9]} 36. Ne1
{[%clk 0:25:09.7]} 36... Bg5 {[%clk 0:10:44]} 37. Nd3 {[%clk 0:25:07.8]} 37...
Bh6 {[%clk 0:10:30]} 38. Kf3 {[%clk 0:24:53.8]} 38... Bg5 {[%clk 0:10:21]} 39.
Kg4 {[%clk 0:24:53.1]} 39... Bf6 {[%clk 0:10:06.7]} 40. Kh5 {[%clk 0:24:52.4]}
40... Ke7 {[%clk 0:08:49.6]} 41. Kg6 {[%clk 0:24:49.5]} 41... Bh8 {[%clk
0:08:48.6]} 42. Nf4 {[%clk 0:24:33]} 42... Be5 {[%clk 0:08:25.3]} 43. Nd5+
{[%clk 0:20:46.7]} 43... Kf8 {[%clk 0:06:13.5]} 44. Kg5 {[%clk 0:17:24.5]} 44...
d3 {[%clk 0:05:34.9]} 45. Kg4 {[%clk 0:16:52.9]} 45... d2 {[%clk 0:05:13.2]} 46.
Ne3 {[%clk 0:16:51]} 46... Kf7 {[%clk 0:05:10.5]} 47. Kf3 {[%clk 0:16:48.4]}
47... Bd4 {[%clk 0:04:45.7]} 48. Nd1 {[%clk 0:16:44.8]} 48... Kf6 {[%clk
0:04:42.8]} 49. Ke4 {[%clk 0:16:45.5]} 49... Kg5 {[%clk 0:04:29.8]} 50. Kd3
{[%clk 0:16:23.2]} 50... Kxf5 {[%clk 0:04:23.4]} 51. Kxd2 {[%clk 0:16:24.2]}
51... Kf4 {[%clk 0:04:07.7]} 1/2-1/2

[Event "Live Chess"]
[Site "Chess.com"]
[Date "2020.09.22"]
[Round "6"]
[White "BreatheChessAlways"]
[Black "Talenuf"]
[Result "1-0"]
[ECO "A45"]
[WhiteElo "1941"]
[BlackElo "1900"]
[TimeControl "2100+2"]
[EndTime "20:27:28 PDT"]
[Termination "BreatheChessAlways won by resignation"]

1. d4 {[%clk 0:35:00.6]} 1... Nf6 {[%clk 0:34:59.3]} 2. Bf4 {[%clk 0:34:58.6]}
2... e6 {[%clk 0:34:56.9]} 3. e3 {[%clk 0:34:58.4]} 3... d5 {[%clk 0:34:57.8]}
4. Nd2 {[%clk 0:34:58.8]} 4... Bd6 {[%clk 0:34:58.7]} 5. Bg3 {[%clk 0:34:58]}
5... Nbd7 {[%clk 0:34:56.9]} 6. c3 {[%clk 0:34:57.2]} 6... Bxg3 {[%clk
0:34:50.9]} 7. hxg3 {[%clk 0:34:57.1]} 7... c5 {[%clk 0:34:52.8]} 8. Ngf3 {[%clk
0:34:57.5]} 8... h6 {[%clk 0:34:46.3]} 9. Bd3 {[%clk 0:34:54.8]} 9... Qe7 {[%clk
0:33:27.1]} 10. Ne5 {[%clk 0:34:37.1]} 10... Nxe5 {[%clk 0:31:28.1]} 11. dxe5
{[%clk 0:34:35.7]} 11... Nd7 {[%clk 0:31:28.9]} 12. f4 {[%clk 0:34:10.6]} 12...
c4 {[%clk 0:29:23.6]} 13. Bc2 {[%clk 0:34:06.7]} 13... Qc5 {[%clk 0:27:31]} 14.
Nf1 {[%clk 0:33:32.7]} 14... Qb6 {[%clk 0:25:52.8]} 15. Rb1 {[%clk 0:33:29.9]}
15... Nc5 {[%clk 0:25:53.2]} 16. Qg4 {[%clk 0:33:28.8]} 16... g6 {[%clk
0:25:25.6]} 17. Bxg6 {[%clk 0:32:22.8]} 17... Rg8 {[%clk 0:24:18.6]} 18. Rxh6
{[%clk 0:31:41]} 18... fxg6 {[%clk 0:23:16]} 19. Rxg6 {[%clk 0:31:35.6]} 19...
Rxg6 {[%clk 0:23:16.7]} 20. Qxg6+ {[%clk 0:31:35.1]} 20... Kd8 {[%clk
0:22:45.4]} 21. Qf6+ {[%clk 0:31:00.4]} 21... Kc7 {[%clk 0:22:38.9]} 22. Qf8
{[%clk 0:30:40.7]} 22... Qa6 {[%clk 0:19:03.8]} 23. Qxc5+ {[%clk 0:30:28.5]}
23... Kd7 {[%clk 0:18:53]} 24. a3 {[%clk 0:30:13]} 24... b5 {[%clk 0:18:50.2]}
25. f5 {[%clk 0:28:37.5]} 25... exf5 {[%clk 0:18:41.2]} 26. Qxd5+ {[%clk
0:28:34.8]} 1-0

[Event "Live Chess"]
[Site "Chess.com"]
[Date "2020.09.22"]
[Round "6"]
[White "camachom"]
[Black "JuditSztaray"]
[Result "1-0"]
[ECO "A01"]
[WhiteElo "1031"]
[BlackElo "827"]
[TimeControl "2100+2"]
[EndTime "20:55:27 PDT"]
[Termination "camachom won by resignation"]

1. b3 {[%clk 0:34:59.3]} 1... e5 {[%clk 0:34:57.3]} 2. Bb2 {[%clk 0:34:58.9]}
2... Nf6 {[%clk 0:34:54.1]} 3. Bxe5 {[%clk 0:34:51.5]} 3... Be7 {[%clk
0:34:37.2]} 4. e3 {[%clk 0:34:35.1]} 4... d6 {[%clk 0:34:33.9]} 5. Bb2 {[%clk
0:34:28]} 5... O-O {[%clk 0:34:25.2]} 6. Nf3 {[%clk 0:33:41.3]} 6... Bg4 {[%clk
0:34:09.8]} 7. Be2 {[%clk 0:33:30.5]} 7... Re8 {[%clk 0:33:30.1]} 8. h3 {[%clk
0:33:26]} 8... Bxf3 {[%clk 0:33:30]} 9. gxf3 {[%clk 0:33:21]} 9... c6 {[%clk
0:32:28.3]} 10. Nc3 {[%clk 0:31:07.8]} 10... d5 {[%clk 0:30:21.8]} 11. d4 {[%clk
0:28:15.4]} 11... Bb4 {[%clk 0:26:12.2]} 12. Qd3 {[%clk 0:27:29.1]} 12... Qd6
{[%clk 0:23:27.8]} 13. O-O-O {[%clk 0:26:58.2]} 13... b6 {[%clk 0:21:25.5]} 14.
Rdg1 {[%clk 0:25:09.8]} 14... g6 {[%clk 0:16:25.2]} 15. h4 {[%clk 0:24:49.7]}
15... Nh5 {[%clk 0:15:53.6]} 16. f4 {[%clk 0:23:55.6]} 16... Bxc3 {[%clk
0:15:08]} 17. Bxc3 {[%clk 0:23:07.9]} 17... f5 {[%clk 0:14:09.1]} 18. Bxh5
{[%clk 0:23:01.1]} 18... Kf8 {[%clk 0:13:55.1]} 19. Be2 {[%clk 0:20:57.3]} 19...
Nd7 {[%clk 0:12:57.5]} 20. h5 {[%clk 0:20:55.6]} 20... Re7 {[%clk 0:11:56.5]}
21. hxg6 {[%clk 0:20:51.1]} 21... Nf6 {[%clk 0:10:28.1]} 22. Qxf5 {[%clk
0:20:18.6]} 22... Rae8 {[%clk 0:09:48.8]} 23. gxh7 {[%clk 0:20:15]} 23... Rxh7
{[%clk 0:09:20.2]} 24. Rxh7 {[%clk 0:20:11]} 24... Re7 {[%clk 0:09:15.6]} 25.
Qc8+ {[%clk 0:19:10.7]} 25... Re8 {[%clk 0:08:57.8]} 26. Rh8+ {[%clk 0:19:07.9]}
26... Kf7 {[%clk 0:08:56.5]} 27. Rxe8 {[%clk 0:18:48.1]} 27... Nxe8 {[%clk
0:08:53.7]} 28. Bh5+ {[%clk 0:18:45.9]} 28... Kf6 {[%clk 0:08:15]} 29. Rg6+
{[%clk 0:18:27.1]} 1-0

[Event "Live Chess"]
[Site "Chess.com"]
[Date "2020.09.22"]
[Round "6"]
[White "chesspilot01"]
[Black "Shouldbedoincalchw"]
[Result "1-0"]
[ECO "B92"]
[WhiteElo "2087"]
[BlackElo "2071"]
[TimeControl "2100+2"]
[EndTime "20:32:46 PDT"]
[Termination "chesspilot01 won by resignation"]

1. e4 {[%clk 0:34:57.3]} 1... c5 {[%clk 0:34:58.7]} 2. Nf3 {[%clk 0:34:57.1]}
2... d6 {[%clk 0:34:39.5]} 3. d4 {[%clk 0:34:45.2]} 3... cxd4 {[%clk 0:34:10.3]}
4. Nxd4 {[%clk 0:34:42.6]} 4... Nf6 {[%clk 0:34:11.8]} 5. Nc3 {[%clk 0:34:41.8]}
5... a6 {[%clk 0:34:13.2]} 6. Be2 {[%clk 0:34:41.3]} 6... e5 {[%clk 0:34:14]} 7.
Nb3 {[%clk 0:34:40.9]} 7... Be6 {[%clk 0:34:15.5]} 8. O-O {[%clk 0:34:28.6]}
8... Be7 {[%clk 0:33:56.1]} 9. f4 {[%clk 0:29:33.9]} 9... exf4 {[%clk
0:33:35.2]} 10. Bxf4 {[%clk 0:29:30.1]} 10... Nc6 {[%clk 0:33:34.2]} 11. Nd4
{[%clk 0:24:32.6]} 11... Qb6 {[%clk 0:32:28]} 12. Be3 {[%clk 0:24:16.6]} 12...
Qxb2 {[%clk 0:31:44.9]} 13. Qd2 {[%clk 0:24:14.2]} 13... Nxd4 {[%clk 0:31:24.5]}
14. Bxd4 {[%clk 0:24:05.8]} 14... Qa3 {[%clk 0:31:24.1]} 15. Rab1 {[%clk
0:23:50.2]} 15... b5 {[%clk 0:30:49.9]} 16. Qg5 {[%clk 0:23:32.8]} 16... O-O
{[%clk 0:29:49.8]} 17. Rxf6 {[%clk 0:23:10.9]} 17... Bxf6 {[%clk 0:28:01.2]} 18.
Bxf6 {[%clk 0:23:09.2]} 18... Qc5+ {[%clk 0:28:00.2]} 19. Qxc5 {[%clk
0:23:08.9]} 19... dxc5 {[%clk 0:28:02.1]} 20. Bh4 {[%clk 0:23:08.2]} 20... f6
{[%clk 0:27:46.4]} 21. Bf2 {[%clk 0:20:58.7]} 21... Rac8 {[%clk 0:27:03.1]} 22.
a4 {[%clk 0:20:12.2]} 22... b4 {[%clk 0:26:30]} 23. Nd5 {[%clk 0:20:08.9]} 23...
Bxd5 {[%clk 0:26:08.2]} 24. exd5 {[%clk 0:20:05.8]} 24... a5 {[%clk 0:26:03.3]}
25. Bc4 {[%clk 0:20:04.4]} 25... Rfd8 {[%clk 0:26:02]} 26. Bg3 {[%clk
0:19:43.9]} 26... g5 {[%clk 0:25:55.4]} 27. Re1 {[%clk 0:19:36.3]} 27... Kf7
{[%clk 0:25:41.8]} 28. d6+ {[%clk 0:19:34.6]} 28... Kg6 {[%clk 0:25:41.6]} 29.
Bd3+ {[%clk 0:19:30.1]} 29... Kg7 {[%clk 0:25:18]} 30. Re7+ {[%clk 0:19:28.9]}
30... Kg8 {[%clk 0:25:18.2]} 31. Bc4+ {[%clk 0:19:05.4]} 31... Kh8 {[%clk
0:25:15.8]} 32. d7 {[%clk 0:18:53.3]} 32... Ra8 {[%clk 0:25:05.9]} 33. Bd5
{[%clk 0:18:51.6]} 33... c4 {[%clk 0:24:51.7]} 34. Bxa8 {[%clk 0:18:49.6]} 34...
b3 {[%clk 0:24:52.3]} 35. Re8+ {[%clk 0:18:50.6]} 35... Kg7 {[%clk 0:24:51.1]}
36. cxb3 {[%clk 0:17:22.4]} 36... Rxd7 {[%clk 0:24:50.3]} 37. bxc4 {[%clk
0:17:21.6]} 1-0

[Event "Live Chess"]
[Site "Chess.com"]
[Date "2020.09.22"]
[Round "6"]
[White "FelixGerman"]
[Black "achingolf"]
[Result "0-1"]
[ECO "A67"]
[WhiteElo "1976"]
[BlackElo "1811"]
[TimeControl "2100+2"]
[EndTime "21:12:36 PDT"]
[Termination "achingolf won on time"]

1. d4 {[%clk 0:34:51.6]} 1... Nf6 {[%clk 0:34:59.4]} 2. c4 {[%clk 0:34:43.9]}
2... c5 {[%clk 0:35:00.5]} 3. d5 {[%clk 0:34:38.4]} 3... e6 {[%clk 0:35:01.5]}
4. Nc3 {[%clk 0:34:13.2]} 4... exd5 {[%clk 0:35:02.1]} 5. cxd5 {[%clk
0:34:11.4]} 5... d6 {[%clk 0:35:03]} 6. e4 {[%clk 0:34:07.9]} 6... g6 {[%clk
0:35:01.4]} 7. f4 {[%clk 0:34:03.9]} 7... Bg7 {[%clk 0:34:55.1]} 8. Bb5+ {[%clk
0:34:02.4]} 8... Nfd7 {[%clk 0:34:39]} 9. a4 {[%clk 0:33:51.1]} 9... O-O {[%clk
0:34:20.5]} 10. Nf3 {[%clk 0:33:29.2]} 10... a6 {[%clk 0:33:03]} 11. Bd3 {[%clk
0:33:22.4]} 11... Re8 {[%clk 0:31:35.5]} 12. O-O {[%clk 0:33:14.7]} 12... c4
{[%clk 0:28:36.9]} 13. Bc2 {[%clk 0:32:21.1]} 13... Nc5 {[%clk 0:27:23.4]} 14.
e5 {[%clk 0:29:25.6]} 14... Bg4 {[%clk 0:22:15.5]} 15. Be3 {[%clk 0:27:58.7]}
15... Nbd7 {[%clk 0:21:42.4]} 16. h3 {[%clk 0:25:34.6]} 16... Bxf3 {[%clk
0:21:25.9]} 17. Qxf3 {[%clk 0:25:34.2]} 17... dxe5 {[%clk 0:21:08.6]} 18. f5
{[%clk 0:25:34.5]} 18... Rc8 {[%clk 0:17:39.3]} 19. d6 {[%clk 0:21:45.1]} 19...
Qb6 {[%clk 0:12:32.4]} 20. Rab1 {[%clk 0:19:36.8]} 20... Qxd6 {[%clk 0:12:01.6]}
21. fxg6 {[%clk 0:17:56.3]} 21... fxg6 {[%clk 0:11:59.2]} 22. Qf7+ {[%clk
0:17:43.1]} 22... Kh8 {[%clk 0:11:57.6]} 23. Qxc4 {[%clk 0:17:36.7]} 23... e4
{[%clk 0:10:52.5]} 24. Qe2 {[%clk 0:15:27.6]} 24... Nd3 {[%clk 0:09:55.5]} 25.
Qd2 {[%clk 0:06:43.5]} 25... N7c5 {[%clk 0:07:27.6]} 26. Rf7 {[%clk 0:04:23.8]}
26... Re7 {[%clk 0:05:12.5]} 27. Rxe7 {[%clk 0:01:42.7]} 27... Qxe7 {[%clk
0:05:11.7]} 28. b4 {[%clk 0:01:36]} 28... Ne6 {[%clk 0:04:29]} 29. Nd5 {[%clk
0:01:34]} 29... Qd6 {[%clk 0:03:50.9]} 30. Nb6 {[%clk 0:01:03.2]} 30... Rd8
{[%clk 0:03:47.9]} 31. a5 {[%clk 0:00:58.2]} 31... Qg3 {[%clk 0:03:25.8]} 32.
Rf1 {[%clk 0:00:45.6]} 32... Be5 {[%clk 0:03:11.2]} 33. Bxd3 {[%clk 0:00:31.2]}
33... Rxd3 {[%clk 0:02:49.4]} 34. Qa2 {[%clk 0:00:12.6]} 34... Qxe3+ {[%clk
0:02:38.5]} 35. Kh1 {[%clk 0:00:13.9]} 35... Qg3 {[%clk 0:02:17.3]} 0-1